{"text_format":"3","workbook":"xlsx","n_sheets":2,"sheets":["JAK KORZYSTAĆ Z TEGO ARKUSZA","DZIENNIK OCEN"],"not_rendered":{"defined_names":7},"read":"whole","date_system":"1900"}

{"sheet":"JAK KORZYSTAĆ Z TEGO ARKUSZA","index":0,"n_rows":10,"n_cols":2,"rows_kept":10}
[null,"INSTRUKCJE"]
[null,"Ten DZIENNIK OCEN umożliwia obliczanie ocen w przypadku, gdy za każde zadanie jest przyznawana określona liczba punktów. "]
[null,"Instrukcje: Pamiętaj o zapisaniu kopii ocen."]
[null,"1. Wprowadź nazwę szkoły, informacje o zajęciach, imiona i nazwiska uczniów oraz ich identyfikatory (opcjonalnie).   "]
[null,"2. Dostosuj tabelę ocen i średnich ocen do używanego systemu ocen."]
[null,"3. Wprowadź nazwy zadań, kwizów lub testów (np. „Kwiz 1”), zaczynając w komórce H8, a także odpowiadające im wartości punktów. "]
[null,"4. Wprowadź wyniki zadań i testów dla poszczególnych uczniów. Kolumny „Średnia”, „Wynik”, „Ocena” i „Średnia ocen” są obliczane automatycznie, ale jeśli chcesz, możesz zastąpić te wartości. Aby przyznać dodatkowe punkty, po prostu przyznaj za zadanie więcej punktów niż liczba punktów do zdobycia podana dla tego zadania."]
[null,"Jeśli chcesz zmienić drukowany obszar, skorzystaj z polecenia Obszar wydruku w menu Układ strony."]
[null,"Wyniki dla ocen są oparte na standardowej skali procentowej zgodnie z łączną liczbą punktów przypisanych w wierszach 8 i 9. Dostosuj odpowiednio liczbę punktów każdego zadania lub testu, a następnie dostosuj wartość procentową zapewniającą odpowiednią ocenę. Aby ręcznie wprowadzić zmiany, zastąp wartości w komórkach Wynik."]
[null,"Wprowadź wszystkie zadania, kwizy lub testy i odpowiadające im punkty w komórkach od H8 do X9."]

{"sheet":"DZIENNIK OCEN","index":1,"n_rows":24,"n_cols":24,"rows_kept":24,"merged":[[1,1,2,6],[3,1,3,6],[4,1,6,6],[7,4,7,6],[8,4,8,6],[10,4,10,6],[11,4,11,6],[19,1,19,6],[20,1,20,2],[20,3,20,4],[21,1,21,2],[21,3,21,4],[22,1,22,2],[22,3,22,4],[23,1,23,2],[23,3,23,4]]}
[null,"NAZWA SZKOŁY"]
[null,"Imię i nazwisko nauczyciela"]
[{"$nulls":7},"Wynik",{"$f":"I4*SumaPunktów","v":118},120,126,134,140,{"v":145.6666666666666,"d":"146"},154,160,166,174,180,186,194]
[null,"Zajęcia/projekt",{"$nulls":5},"%",{"v":0.59,"d":"59%"},{"v":0.6,"d":"60%"},{"v":0.63,"d":"63%"},{"v":0.67,"d":"67%"},{"v":0.7,"d":"70%"},{"v":0.728333333333333,"d":"73%"},{"v":0.77,"d":"77%"},{"v":0.8,"d":"80%"},{"v":0.83,"d":"83%"},{"v":0.87,"d":"87%"},{"v":0.9,"d":"90%"},{"v":0.93,"d":"93%"},{"v":0.97,"d":"97%"}]
[null,"Rok/semestr/kwartał",{"$nulls":5},"Ocena","1","2-","2","2+","3-","3","3+","4-","4","4+","5-","5","6"]
[{"$nulls":7},"Średnia ocen",0,0.67,1,1.33,1.67,2,2.33,2.67,3,3.33,3.67,4,4]
[]
[{"$nulls":4},"Nazwa zadania lub testu",null,null,"ZAD1","ZAD2","KW1"]
[{"$nulls":4},"Łączna liczba dostępnych punktów",null,null,50,50,100]
[]
[{"$nulls":4},"Łączna liczba zadań i testów:",null,null,{"$f":"COUNTA(H8:X8)","v":3}]
[{"$nulls":4},"Łączna liczba punktów do zdobycia:",null,null,{"$f":"SUM(H9:X9)","v":200}]
[]
[null,"Imię i nazwisko ucznia","Identyfikator ucznia","Średnia","Wynik","Ocena","Średnia ocen","Kolumna 6","Kolumna 7","Kolumna 8","Kolumna 9","Kolumna 10","Kolumna 11","Kolumna 12","Kolumna 13","Kolumna 14","Kolumna 15","Kolumna 16","Kolumna 17","Kolumna 18","Kolumna 19","Kolumna 20","Kolumna 21","Kolumna 22"]
[null,"Numer ucznia 1",null,{"$f":"IFERROR(IF(COUNT(Oceny[[#This Row],[Kolumna 6]:[Kolumna 22]])=0,\"\",SUM(Oceny[[#This Row],[Kolumna 6]:[Kolumna 22]])/SumaPunktów),\"\")","v":{"v":0.91,"d":"91.0%"}},{"$f":"IF(COUNT(Oceny[[#This Row],[Kolumna 6]:[Kolumna 22]])=0,\"\",SUM(Oceny[[#This Row],[Kolumna 6]:[Kolumna 22]]))","v":182},{"$f":"IFERROR(IF(Oceny[[#This Row],[Średnia]]<>\"\",HLOOKUP(Oceny[[#This Row],[Średnia]]*SumaPunktów,TabelaOcen,3),\"\"),0)","v":"5-"},{"$f":"IFERROR(IF(Oceny[[#This Row],[Średnia]]<>\"\",HLOOKUP(Oceny[[#This Row],[Średnia]]*SumaPunktów,TabelaOcen,4),\"\"),0)","v":3.67},45,45,92]
[null,"Numer ucznia 2",null,{"$f":"IFERROR(IF(COUNT(Oceny[[#This Row],[Kolumna 6]:[Kolumna 22]])=0,\"\",SUM(Oceny[[#This Row],[Kolumna 6]:[Kolumna 22]])/SumaPunktów),\"\")","v":{"v":1,"d":"100.0%"}},{"$f":"IF(COUNT(Oceny[[#This Row],[Kolumna 6]:[Kolumna 22]])=0,\"\",SUM(Oceny[[#This Row],[Kolumna 6]:[Kolumna 22]]))","v":200},{"$f":"IFERROR(IF(Oceny[[#This Row],[Średnia]]<>\"\",HLOOKUP(Oceny[[#This Row],[Średnia]]*SumaPunktów,TabelaOcen,3),\"\"),0)","v":"6"},{"$f":"IFERROR(IF(Oceny[[#This Row],[Średnia]]<>\"\",HLOOKUP(Oceny[[#This Row],[Średnia]]*SumaPunktów,TabelaOcen,4),\"\"),0)","v":{"v":4,"d":"4.00"}},50,50,100]
[{"$nulls":3},{"$f":"IFERROR(IF(COUNT(Oceny[[#This Row],[Kolumna 6]:[Kolumna 22]])=0,\"\",SUM(Oceny[[#This Row],[Kolumna 6]:[Kolumna 22]])/SumaPunktów),\"\")","v":""},{"$f":"IF(COUNT(Oceny[[#This Row],[Kolumna 6]:[Kolumna 22]])=0,\"\",SUM(Oceny[[#This Row],[Kolumna 6]:[Kolumna 22]]))","v":""},{"$f":"IFERROR(IF(Oceny[[#This Row],[Średnia]]<>\"\",HLOOKUP(Oceny[[#This Row],[Średnia]]*SumaPunktów,TabelaOcen,3),\"\"),0)","v":""},{"$f":"IFERROR(IF(Oceny[[#This Row],[Średnia]]<>\"\",HLOOKUP(Oceny[[#This Row],[Średnia]]*SumaPunktów,TabelaOcen,4),\"\"),0)","v":""}]
[{"$nulls":3},{"$f":"IFERROR(IF(COUNT(Oceny[[#This Row],[Kolumna 6]:[Kolumna 22]])=0,\"\",SUM(Oceny[[#This Row],[Kolumna 6]:[Kolumna 22]])/SumaPunktów),\"\")","v":""},{"$f":"IF(COUNT(Oceny[[#This Row],[Kolumna 6]:[Kolumna 22]])=0,\"\",SUM(Oceny[[#This Row],[Kolumna 6]:[Kolumna 22]]))","v":""},{"$f":"IFERROR(IF(Oceny[[#This Row],[Średnia]]<>\"\",HLOOKUP(Oceny[[#This Row],[Średnia]]*SumaPunktów,TabelaOcen,3),\"\"),0)","v":""},{"$f":"IFERROR(IF(Oceny[[#This Row],[Średnia]]<>\"\",HLOOKUP(Oceny[[#This Row],[Średnia]]*SumaPunktów,TabelaOcen,4),\"\"),0)","v":""}]
[{"$nulls":3},{"$f":"IFERROR(IF(COUNT(Oceny[[#This Row],[Kolumna 6]:[Kolumna 22]])=0,\"\",SUM(Oceny[[#This Row],[Kolumna 6]:[Kolumna 22]])/SumaPunktów),\"\")","v":""},{"$f":"IF(COUNT(Oceny[[#This Row],[Kolumna 6]:[Kolumna 22]])=0,\"\",SUM(Oceny[[#This Row],[Kolumna 6]:[Kolumna 22]]))","v":""},{"$f":"IFERROR(IF(Oceny[[#This Row],[Średnia]]<>\"\",HLOOKUP(Oceny[[#This Row],[Średnia]]*SumaPunktów,TabelaOcen,3),\"\"),0)","v":""},{"$f":"IFERROR(IF(Oceny[[#This Row],[Średnia]]<>\"\",HLOOKUP(Oceny[[#This Row],[Średnia]]*SumaPunktów,TabelaOcen,4),\"\"),0)","v":""}]
[]
[null,"Podsumowanie zajęć",null,"Średnia",null,"Ocena","Średnia ocen","","","","","","","","","","",""]
[null," Średnia",null,{"$f":"IFERROR(AVERAGE(Oceny[[#All],[Średnia]]),0)","v":{"v":0.9550000000000001,"d":"95.5%"}},null,{"$f":"IFERROR(HLOOKUP(D22*SumaPunktów,TabelaOcen,3),\"\")","v":"5"},{"$f":"IFERROR(AVERAGE(Oceny[[#All],[Średnia ocen]]),0)","v":{"v":3.835,"d":"3.84"}},"","","","","","","","","","","","","","","","",""]
[null," Najlepszy wynik",null,{"$f":"IFERROR(MAX(Oceny[[#All],[Średnia]]),0)","v":{"v":1,"d":"100.0%"}},null,{"$f":"IFERROR(HLOOKUP(D23*SumaPunktów,TabelaOcen,3),\"\")","v":"6"},{"$f":"IFERROR(MAX(Oceny[[#All],[Średnia ocen]]),0)","v":{"v":4,"d":"4.00"}},"","","","","","","","","","","","","","","","",""]
[null," Najsłabszy wynik",null,{"$f":"IFERROR(MIN(Oceny[[#All],[Średnia]]),0)","v":{"v":0.91,"d":"91.0%"}},null,{"$f":"IFERROR(HLOOKUP(D24*SumaPunktów,TabelaOcen,3),\"\")","v":"5-"},{"$f":"IFERROR(MIN(Oceny[[#All],[Średnia ocen]]),0)","v":3.67},"","","","","","","","","","","","","","","","",""]